bitfinex-derivatives/quotes_ETHF0:USTF0_20250518
["timestamp","ask_amount","ask_price","bid_price","bid_amount"]
[1747587891894,0.77851,2568.2,2568.1,0.77852]
[1747587892089,0.7785,2568.2,2568.1,0.77852]
[1747587892394,3.058,2568.2,2568.1,0.77852]
[1747587892781,3.058,2568.2,2568.1,5.19098052]
[1747587893895,3.058,2568.2,2568.1,7.27508052]
[1747587895395,3.83649,2568.2,2568.1,4.41246052]
[1747587895597,0.77854,2568.1,2567.8,2.1555]
[1747587895893,3.01384,2568.1,2568.0,0.77855]
[1747587896090,6.07184,2568.1,2568.0,0.77855]
[1747587896496,5.2933,2568.1,2568.0,0.77855]
[1747587897893,3.058,2568.1,2568.0,0.77855]
[1747587898094,3.058,2568.1,2568.0,4.88031722]
[1747587899589,3.058,2568.1,2568.0,3.98635]
[1747587899998,3.058,2568.1,2568.0,8.23815501]
[1747587900307,3.2078,2568.7,2568.6,0.77837]
[1747587900497,3.2078,2568.7,2568.3,1.9461]
[1747587900498,2.40822434,2568.8,2568.7,0.77834]
[1747587901205,0.77835,2568.7,2568.4,6.6506]
[1747587901404,2.2535,2568.7,2568.5,0.77838]
[1747587901603,2.2535,2568.7,2568.6,0.77837]
[1747587901802,3.03187,2568.7,2568.5,7.40936459]
[1747587902007,3.03187,2568.7,2568.6,0.77837]
[1747587902008,2.2535,2568.7,2568.6,0.77837]
[1747587902303,3.058,2568.7,2568.5,3.04448]
[1747587902503,3.03187,2568.6,2568.5,2.2661]
[1747587902700,2.2535,2568.6,2568.1,3.04461]
[1747587902908,0.77849,2568.2,2568.1,2.2661]
[1747587903096,0.77849,2568.2,2568.1,6.48338852]
[1747587903296,0.77849,2568.2,2568.1,7.26190852]
[1747587903605,0.77849,2568.2,2568.1,4.21728852]
[1747587903802,0.77858,2567.9,2567.8,1.53799065]
[1747587904099,3.058,2567.9,2567.8,1.53799065]
[1747587904297,3.058,2567.9,2567.8,8.93982047]
[1747587905404,3.058,2567.9,2567.8,12.14762047]
[1747587905604,1.5478222,2568.2,2568.1,0.77852]
[1747587905806,1.5478222,2568.2,2568.1,13.09532]
[1747587906007,1.5478222,2568.2,2568.1,22.38164667]
[1747587906503,1.5478222,2568.2,2568.1,5.06484667]
[1747587906709,1.5478222,2568.2,2568.1,16.28674667]
[1747587907206,4.6058222,2568.2,2568.1,24.49454667]
[1747587907907,3.07896095,2568.7,2568.6,0.77837]
[1747587908202,3.058,2568.7,2568.6,0.77837]
[1747587908505,3.058,2568.7,2568.6,5.01409627]
[1747587908705,3.058,2568.7,2568.6,14.12209627]
[1747587908907,3.058,2568.7,2568.6,5.01409627]
[1747587909311,3.058,2568.7,2568.4,3.2078]
[1747587909511,5.10297,2568.6,2568.4,3.2078]
[1747587909712,3.058,2568.7,2568.4,3.2078]
[1747587909912,3.058,2568.7,2568.5,7.2871896]
[1747587910113,5.3483,2568.7,2568.6,0.77837]
[1747587910813,3.058,2568.7,2568.6,5.25753932]
[1747587911111,3.058,2568.7,2568.6,7.33163932]
[1747587911314,0.09218003,2568.8,2568.7,0.77834]
[1747587911506,0.09218003,2568.8,2568.7,12.00424]
[1747587911814,0.09218003,2568.8,2568.7,16.36686774]
[1747587912011,3e-08,2568.8,2568.7,24.57466774]
[1747587912211,3e-08,2568.8,2568.7,10.46866774]
[1747587912512,3e-08,2568.8,2568.7,16.36586774]
[1747587913415,3.05800003,2568.8,2568.7,19.57366774]
[1747587913817,3.05800003,2568.8,2568.7,20.59113574]
[1747587914014,2.32223496,2569.2,2569.1,0.77822]
[1747587914517,2.32223496,2569.2,2569.1,5.15137558]
[1747587914715,2.32223496,2569.2,2569.1,9.38477558]
[1747587915918,9.106,2569.5,2569.4,0.77813]
[1747587916113,0.77819,2569.2,2569.1,5.39062358]
[1747587916315,3.98599,2569.2,2569.1,1.017468]
[1747587917312,6.2658,2569.2,2569.1,0.77822]
[1747587917519,6.2658,2569.2,2568.8,3.27923002]
[1747587917719,6.2658,2569.2,2569.1,0.77822]
[1747587918316,0.77825,2569.0,2568.9,4.30299235]
[1747587918622,0.77828,2568.9,2568.8,1.16223002]
[1747587918821,5.3129,2568.9,2568.8,1.94054002]
[1747587919024,6.09118,2568.9,2568.8,1.94054002]
[1747587919224,3.02045344,2568.9,2568.8,13.08557677]
[1747587919521,3.02045344,2568.9,2568.8,21.65447677]
[1747587919926,3.02045344,2568.9,2568.8,12.55447677]
[1747587920219,3.02045344,2568.9,2568.8,21.65447677]
[1747587920826,2.12380344,2568.9,2568.8,26.65447677]
[1747587921228,2.41441499,2569.2,2569.1,0.77822]
[1747587921430,2.41441499,2569.2,2569.1,13.08502]
[1747587921725,2.41441499,2569.2,2569.1,17.5836801]
[1747587922223,1.62529499,2569.2,2569.1,22.5836801]
[1747587922429,4.99e-06,2569.2,2569.1,22.5836801]
[1747587923330,4.99e-06,2569.2,2569.1,23.60599466]
[1747587923531,4.99e-06,2569.2,2569.1,25.85809466]
[1747587924832,4.99e-06,2569.2,2569.1,29.80409466]
[1747587926840,4.99e-06,2569.2,2569.1,40.44208531]
[1747587927933,4.99e-06,2569.2,2569.1,31.34708531]
[1747587928235,4.99e-06,2569.2,2569.1,40.44208531]
[1747587929636,4.99e-06,2569.2,2569.1,40.43908531]
[1747587930025,4.99e-06,2569.2,2569.1,38.90009466]
[1747587930526,4.99e-06,2569.2,2569.1,20.70509466]
[1747587930728,4.99e-06,2569.2,2569.1,34.95409466]
[1747587931027,4.99e-06,2569.2,2569.1,38.90009466]
[1747587931332,4.99e-06,2569.2,2569.1,34.95409466]
[1747587932136,4.99e-06,2569.2,2569.1,38.90009466]
[1747587933835,4.99e-06,2569.2,2569.1,38.89709466]
[1747587935239,4.99e-06,2569.2,2569.1,41.2211023]
[1747587935938,4.99e-06,2569.2,2569.1,41.2191023]
[1747587936241,4.99e-06,2569.2,2569.1,23.0291023]
[1747587936438,4.99e-06,2569.2,2569.1,41.2191023]
[1747587936737,4.99e-06,2569.2,2569.1,32.1301023]
[1747587937133,2.0866,2570.2,2570.1,0.77792]
[1747587937432,2.0866,2570.2,2570.1,9.86692]
[1747587937640,2.0866,2570.2,2570.1,14.27666753]
[1747587938151,5.1446,2570.2,2570.1,14.27666753]
[1747587940237,5.1446,2570.2,2570.1,14.27466753]
[1747587940437,5.1446,2570.2,2570.1,5.18766753]
[1747587940736,5.1446,2570.2,2570.1,14.27366753]
[1747587941935,10.92249,2570.2,2570.0,0.77793]
[1747587942234,5.92249,2570.2,2570.0,5.17005149]
[1747587942438,5.92249,2570.2,2570.1,0.77792]
[1747587942735,0.77792,2570.1,2570.0,4.39210149]
[1747587942933,0.77797,2570.0,2569.9,0.77797]
[1747587943240,0.77807,2569.7,2569.5,1.15965766]
[1747587943539,6.3552,2569.6,2569.5,1.93775766]
[1747587943936,11.3552,2569.6,2569.5,1.93775766]
[1747587944239,14.4132,2569.6,2569.5,1.93775766]
[1747587944438,9.4132,2569.6,2569.5,1.93775766]
[1747587945241,9.4132,2569.6,2569.5,0.7781]
[1747587946145,0.77813,2569.4,2569.3,3.2078]
[1747587946941,0.77813,2569.4,2569.3,3.98596]
[1747587947142,3.83613,2569.4,2569.3,3.2078]
[1747587947342,3.83613,2569.4,2569.3,3.98596]
[1747587947548,3.83613,2569.4,2569.3,3.2078]
[1747587947732,0.77822,2569.1,2569.0,3.2078]
[1747587948240,8.83622,2569.1,2569.0,3.2078]
[1747587948429,3.83622,2569.1,2569.0,3.2078]
[1747587949338,0.77838,2568.6,2568.5,0.77839]
[1747587949641,0.77838,2568.6,2568.3,1.15965766]
[1747587949642,9.086,2568.6,2568.3,1.15965766]
[1747587949843,4.2907,2568.5,2568.4,0.77843]
[1747587950043,4.2907,2568.5,2568.3,1.15965766]
[1747587950345,2.87713,2568.4,2568.3,1.15965766]
[1747587950544,4.99773,2568.4,2568.3,1.15965766]
[1747587950842,4.2193,2568.4,2568.3,6.02325139]
[1747587951138,7.2773,2568.4,2568.3,6.02325139]
[1747587951339,3.058,2568.4,2568.3,6.02325139]
[1747587951543,4.2907,2569.0,2568.9,0.77828]
[1747587952043,4.2907,2569.0,2568.9,5.00481334]
[1747587952236,7.3487,2569.0,2568.9,5.00481334]
[1747587952441,10.5565,2569.0,2568.6,9.081]
[1747587952635,10.5565,2569.0,2568.6,0.77837]
[1747587952843,10.5565,2569.0,2568.6,4.16729622]
[1747587952844,0.77836,2568.7,2568.6,4.16729622]
[1747587953043,0.77836,2568.7,2568.5,0.77838]
[1747587953243,0.77841,2568.5,2568.3,0.77845]
[1747587953538,4.3767,2568.4,2568.3,0.77845]
[1747587953742,2.2843,2568.4,2568.3,0.77845]
[1747587954039,2.2843,2568.4,2568.3,7.29793733]
[1747587955248,2.2586,2568.7,2568.6,0.77837]
[1747587955442,4.3316,2568.7,2568.6,0.77837]
[1747587955744,2.073,2568.7,2568.6,4.83334705]
[1747587956533,2.0924,2568.9,2568.8,0.77831]
[1747587956744,4.1654,2568.9,2568.8,0.77831]
[1747587957042,4.1654,2568.9,2568.8,4.92240779]
[1747587957232,7.2234,2568.9,2568.8,7.04240779]
[1747587957641,5.131,2568.9,2568.8,7.04240779]
[1747587958844,5.131,2568.9,2568.8,4.92240779]
[1747587959442,5.131,2568.9,2568.8,4.14409779]
[1747587959443,10.90928,2568.9,2568.8,4.14409779]
[1747587959641,0.77832,2568.8,2568.6,0.77836]
[1747587959947,2.1365,2568.7,2568.6,0.77837]
[1747587960659,2.1365,2568.7,2568.6,7.29744476]
[1747587961244,5.1945,2568.7,2568.6,7.29744476]
[1747587961549,3.058,2568.7,2568.6,7.29744476]
[1747587962143,2.2151,2569.0,2568.9,0.77828]
[1747587962538,2.0706,2569.2,2569.1,0.77822]
[1747587963244,5.1286,2569.2,2569.1,0.77822]
[1747587963850,5.1286,2569.2,2569.1,4.84598443]
[1747587963851,3.058,2569.2,2569.1,4.84598443]
[1747587965442,3.058,2569.2,2569.1,8.05378443]
[1747587965945,3.058,2569.2,2569.1,17.12678443]
[1747587967249,2.2546,2569.6,2569.5,0.7781]
[1747587968351,5.3126,2569.6,2569.5,0.7781]
[1747587969150,3.058,2569.6,2569.5,0.7781]
[1747587969753,3.058,2569.6,2569.5,4.84930417]
[1747587970748,3.058,2569.6,2569.5,8.05710417]
[1747587970950,3.058,2569.6,2569.5,4.84930417]
[1747587971355,1.12842001,2569.6,2569.5,8.05710417]
[1747587972052,1.12842001,2569.6,2569.5,10.27690417]
[1747587972356,4.47344796,2570.2,2570.1,0.77792]
[1747587972654,2.1555,2570.2,2570.1,0.77792]
[1747587972853,2.1555,2570.2,2569.9,9.067]
[1747587973157,5.2135,2570.2,2570.1,0.77792]
[1747587974050,3.058,2570.2,2570.1,5.12923672]
[1747587974350,3.058,2570.2,2570.1,8.33703672]
[1747587974557,3.058,2570.2,2570.1,5.12923672]
[1747587976153,3.058,2570.2,2570.1,14.19223672]
[1747587976752,3.058,2570.2,2570.1,5.12923672]
[1747587977353,3.058,2570.2,2570.1,7.19723672]
[1747587979856,0.86383,2570.2,2570.1,21.26323672]
[1747587980151,0.09218003,2570.2,2570.1,12.19723672]
[1747587980353,0.09218003,2570.2,2570.1,25.32223672]
[1747587980963,0.09218003,2570.2,2570.1,7.19723672]
[1747587981164,3.15018003,2570.2,2570.1,7.19723672]
[1747587981455,3.15018003,2570.2,2570.1,16.25423672]
[1747587981855,3.15018003,2570.2,2570.1,16.25323672]
[1747587983960,3.15018003,2570.2,2570.1,16.25123672]
[1747587984461,3.15018003,2570.2,2570.1,0.77792]
[1747587984863,3.15018003,2570.2,2570.1,5.22209731]
[1747587985370,3.15018003,2570.2,2570.1,9.28979731]
[1747587987263,0.68593003,2570.2,2570.1,16.34119731]
[1747587987460,3e-08,2570.2,2570.1,16.34119731]
[1747587987660,3e-08,2570.2,2570.1,17.37249183]
[1747587988167,0.09218003,2570.2,2570.1,12.37249183]
[1747587988370,3e-08,2570.2,2570.1,30.48649183]
[1747587989168,3e-08,2570.2,2570.1,12.37249183]
[1747587989466,3e-08,2570.2,2570.1,30.48549183]
[1747587989667,3e-08,2570.2,2570.1,12.37249183]
[1747587989868,3e-08,2570.2,2570.1,21.42049183]
[1747587990370,3.05800003,2570.2,2570.1,21.42049183]
[1747587990760,3.05800003,2570.2,2570.1,20.38919731]
[1747587992063,3.05800003,2570.2,2570.1,20.38719731]
[1747587992562,3.05800003,2570.2,2570.1,11.34119731]
[1747587992762,3.05800003,2570.2,2570.1,5.22209731]
[1747587993472,3.05800003,2570.2,2570.1,0.77792]
[1747587997473,9.53900003,2570.2,2570.1,0.77792]
[1747587998272,0.77792,2570.1,2569.6,1.94518]
[1747587998575,2.0694,2570.0,2569.9,0.77798]
[1747587998977,7.0694,2570.0,2569.9,0.77798]
[1747587999178,10.1274,2570.0,2569.9,0.77798]
[1747588000375,5.1274,2570.0,2569.9,0.77798]
[1747588000876,5.90535,2570.0,2569.9,0.77798]
[1747588001875,5.1274,2570.0,2569.2,5.15327]
[1747588002175,0.77808,2569.6,2569.5,4.93243297]
[1747588002473,0.77808,2569.6,2569.5,0.77807]
[1747588002980,2.89444,2569.8,2569.7,0.77804]
[1747588003277,2.89444,2569.8,2569.6,0.77805]
[1747588003278,0.77805,2569.7,2569.6,0.77805]
[1747588004079,3.83605,2569.7,2569.6,0.77805]
[1747588005374,0.77807,2569.6,2569.5,5.26275069]
[1747588005897,0.77807,2569.6,2569.5,4.48467069]
[1747588006096,0.77807,2569.6,2569.5,5.26277069]
[1747588006296,3.83607,2569.6,2569.5,5.26277069]
[1747588006600,7.04387,2569.6,2569.5,5.26277069]
[1747588006899,6.2658,2569.6,2569.5,5.26277069]
[1747588008599,3.058,2569.6,2569.5,5.26277069]
[1747588008990,2.12074,2569.6,2569.5,8.47057069]
[1747588009191,2.31794796,2570.1,2570.0,0.77795]
[1747588009397,2.31794799,2570.2,2570.1,0.77792]
[1747588009601,2.31794796,2570.2,2570.1,0.77792]
[1747588009800,2.31794796,2570.2,2570.1,4.89330615]
[1747588010195,5.37594796,2570.2,2570.0,0.77794]
[1747588010588,5.37594796,2570.2,2569.9,0.77797]
[1747588010801,3.98576,2570.0,2569.5,9.03]
[1747588010999,3.98577,2570.0,2569.8,0.778]
[1747588011203,0.77799,2569.9,2569.7,0.77802]
[1747588012003,0.77799,2569.9,2569.8,0.77801]
[1747588012304,3.83599,2569.9,2569.8,0.77801]
[1747588012801,3.058,2569.9,2569.4,4.2562]
[1747588012998,0.77802,2569.8,2569.7,0.77802]
[1747588013295,3.2078,2569.8,2569.7,0.77802]
[1747588013702,3.058,2569.9,2569.8,0.77801]
[1747588014204,3.058,2569.9,2569.8,3.03431]
[1747588014396,3.058,2569.9,2569.8,5.19221]
[1747588016797,3.058,2569.9,2569.8,0.77801]
[1747588016999,11.2658,2569.9,2569.2,1.15965766]
[1747588017202,0.77803,2569.8,2569.6,0.77807]
[1747588017404,9.038,2569.7,2569.6,0.77807]
[1747588018106,12.096,2569.7,2569.6,0.77807]
[1747588018602,3.058,2569.7,2569.6,0.77807]
[1747588018803,12.096,2569.7,2569.6,0.77807]
[1747588018991,14.2126,2569.7,2569.6,0.77807]
[1747588019397,3.058,2569.7,2569.6,0.77807]
[1747588020808,3.058,2569.7,2569.6,5.00469358]
[1747588021501,5.91314,2569.7,2569.6,4.22662358]
[1747588021705,5.91314,2569.7,2569.5,2.0919]
[1747588021706,0.87025003,2569.6,2569.4,0.77811]
[1747588022009,2.0771,2569.5,2569.4,0.77811]
[1747588022195,0.77813,2569.4,2569.3,4.25728058]
[1747588022402,0.77816,2569.4,2569.2,0.77817]
[1747588023005,0.77816,2569.3,2569.2,0.77817]
[1747588023210,0.77816,2569.3,2569.2,2.0509]
[1747588023506,9.81716,2569.3,2569.2,2.0509]
[1747588023806,12.07826,2569.3,2569.2,2.0509]
[1747588024210,14.3581,2569.3,2569.2,2.82909]
[1747588025307,15.13626,2569.3,2569.2,2.82909]
[1747588025501,14.3581,2569.3,2569.2,2.82909]
[1747588026503,12.097,2569.3,2569.2,2.82909]
[1747588026699,12.87516,2569.3,2569.2,2.0509]
[1747588027009,15.3048,2569.3,2568.9,4.2275]
[1747588027200,0.77824,2569.1,2569.0,0.77825]
[1747588027505,0.77824,2569.1,2569.0,2.2382]
[1747588027805,0.77824,2569.1,2569.0,3.01645]
[1747588028010,0.77824,2569.1,2569.0,2.2382]
[1747588028209,3.83624,2569.1,2569.0,2.2382]
[1747588028416,3.83624,2569.1,2569.0,3.01645]
[1747588029110,3.058,2569.1,2569.0,3.01645]
[1747588034511,3.058,2569.1,2569.0,7.41119952]
[1747588039018,3.058,2569.1,2569.0,8.44102074]
[1747588039217,9.009,2569.5,2569.4,0.77813]
[1747588039520,9.009,2569.5,2569.0,5.21365122]
[1747588039910,12.02362,2569.5,2569.4,0.77813]
[1747588040112,15.08162,2569.5,2569.4,0.77813]
[1747588041313,0.77813,2569.4,2569.3,2.93245]
[1747588041517,15.08162,2569.5,2569.4,0.77813]
[1747588041707,3.058,2569.5,2569.4,0.77813]
[1747588041907,3.058,2569.5,2569.4,9.58446903]
[1747588043620,3.058,2569.5,2569.4,12.79226903]
[1747588044316,5.52574796,2569.9,2569.8,0.77801]
[1747588045215,5.37594796,2569.9,2569.8,0.77801]
[1747588045420,3.48116796,2569.9,2569.8,10.00514913]
[1747588045812,3.48116796,2569.9,2569.8,12.21664913]
[1747588046121,0.42316796,2569.9,2569.8,12.21664913]
[1747588047117,7.96e-06,2569.9,2569.8,12.21664913]
[1747588048119,3.2078,2570.7,2570.6,0.77777]
[1747588048313,5.3442,2571.0,2570.9,0.77768]
[1747588048513,3.2078,2571.0,2570.9,0.77768]
[1747588048720,3.07896095,2571.2,2571.1,0.77762]
[1747588049019,3.07896095,2571.2,2571.1,5.05214951]
[1747588049220,8.27336095,2571.2,2571.1,5.05214951]
[1747588049420,8.27336095,2571.2,2571.1,0.77762]
[1747588049923,8.27336095,2571.2,2570.8,8.988]
[1747588050118,2.2175,2571.1,2571.0,0.77763]
[1747588050316,4.2817,2571.1,2571.0,0.77763]
[1747588050821,6.13696095,2571.2,2571.1,0.77762]
[1747588051018,5.35809095,2571.2,2571.1,14.05982]
[1747588051221,0.94090095,2571.2,2571.1,25.50204303]
[1747588051520,9.5e-07,2571.2,2571.1,20.50204303]
[1747588051823,9.5e-07,2571.2,2571.1,11.51704303]
[1747588052023,4.2817,2571.3,2571.2,0.77758]
[1747588052319,2.0642,2571.3,2571.2,0.77758]
[1747588052623,5.05908,2571.9,2571.2,8.3265613]
[1747588052829,2.1159,2571.7,2571.6,0.77744]
[1747588053121,5.1739,2571.7,2571.6,0.77744]
[1747588056227,3.058,2571.7,2571.6,0.77744]
[1747588056424,3.058,2571.7,2571.6,3.03154]
[1747588057825,3.058,2571.7,2571.6,7.29374338]
[1747588062827,3.058,2571.7,2571.6,5.03964338]
[1747588063027,3.058,2571.7,2571.6,5.03966338]
[1747588063828,5.2077,2571.7,2571.6,5.03966338]
[1747588064228,3.058,2571.7,2571.6,7.09186338]
[1747588064428,3.058,2571.7,2571.6,0.77746]
[1747588064826,5.2077,2571.7,2571.6,0.77746]
[1747588065329,5.2077,2571.7,2571.6,4.94298673]
[1747588065629,5.2077,2571.7,2571.6,7.10048673]
[1747588067034,3.058,2571.7,2571.6,7.10048673]
[1747588067224,3.058,2571.7,2571.6,10.30828673]
[1747588068230,2.0931,2572.3,2571.7,1.94355]
[1747588068433,2.87037,2572.3,2572.1,0.7773]
[1747588068633,2.87037,2572.3,2572.2,0.77728]
[1747588068835,2.87037,2572.3,2572.1,0.77731]
[1747588069133,5.1511,2572.3,2571.8,19.52027495]
[1747588069527,3.058,2572.3,2571.8,11.55917495]
[1747588069726,5.03838,2572.2,2572.0,0.77732]
[1747588070030,4.2611,2572.2,2572.1,0.77731]
[1747588070243,4.2611,2572.2,2572.1,5.03908264]
[1747588070830,4.2611,2572.2,2572.1,4.93558168]
[1747588073832,0.77726,2572.3,2572.2,0.77728]
[1747588074032,0.77726,2572.3,2572.2,2.2392]
[1747588074733,4.3773,2572.5,2572.1,4.93556168]
[1747588074940,2.1568,2572.2,2572.1,4.93556168]
[1747588075623,8.45601043,2573.3,2572.7,0.77711]
[1747588075822,2.1568,2573.1,2572.2,5.2675]
[1747588076025,2.1568,2573.1,2572.5,0.77718]
[1747588076026,0.77716,2572.7,2572.5,0.77718]
[1747588076233,4.2426,2572.6,2572.5,0.77718]
[1747588078041,2.1194,2572.8,2572.7,0.77713]
[1747588078237,4.3225,2572.8,2572.2,3.98507]
[1747588078436,4.3225,2572.8,2572.3,0.77724]
[1747588078643,0.77722,2572.4,2572.3,0.77725]
[1747588078938,0.77722,2572.4,2572.2,0.77727]
[1747588079139,4.3683,2572.3,2572.2,0.77727]
[1747588079542,4.3683,2572.3,2572.1,4.15827168]
[1747588079842,4.3683,2572.3,2572.2,0.77728]
[1747588080041,4.3683,2572.3,2571.9,5.39579099]
[1747588080340,0.77734,2572.0,2571.9,5.39579099]
[1747588080646,3.2078,2572.1,2572.0,0.77734]
[1747588080837,11.8436,2572.2,2572.0,0.77734]
[1747588081035,2.87959,2572.2,2571.9,1.15965766]
[1747588081232,0.77731,2572.1,2572.0,4.12542862]
[1747588081443,0.77731,2572.1,2571.9,1.93702766]
[1747588081644,0.77734,2572.0,2571.9,1.15965766]
[1747588083248,5.77734,2572.0,2571.9,1.15965766]
[1747588083433,5.0,2572.0,2571.5,3.2078]
[1747588083638,0.77747,2571.6,2571.5,3.2078]
[1747588084132,8.964,2571.7,2571.6,0.77747]
[1747588084447,3.2078,2571.9,2571.8,0.7774]
[1747588085242,3.2078,2571.9,2571.8,2.9377]
[1747588085637,3.2078,2571.9,2571.8,7.21054817]
[1747588085836,0.77734,2572.0,2571.9,0.77736]
[1747588086137,0.77734,2572.0,2571.9,6.57407994]
[1747588086343,0.77734,2572.0,2571.9,4.41377994]
[1747588086538,0.77739,2571.9,2571.7,14.20902]
[1747588087045,0.77739,2571.9,2571.8,5.23136078]
[1747588087350,0.77739,2571.9,2571.8,7.47166078]
[1747588087950,0.77737,2571.9,2571.8,7.47166078]
[1747588088547,0.77737,2571.9,2571.8,6.69426078]
[1747588088840,3.2078,2571.9,2571.4,1.15965766]
[1747588089046,0.77744,2571.7,2571.6,0.77745]
[1747588089248,3.2078,2571.9,2571.4,3.39995766]
[1747588089444,0.7775,2571.5,2571.4,3.39995766]
[1747588089851,0.77747,2571.6,2571.5,0.77747]
[1747588090044,0.77741,2571.8,2571.7,0.77742]
[1747588090244,0.77741,2571.8,2571.4,2.2403]
[1747588090245,11.89083,2572.1,2571.9,0.77734]
[1747588090445,11.1135,2572.1,2571.8,4.13140039]
[1747588090742,0.77735,2572.0,2571.9,2.90046]
[1747588092051,3.2078,2572.2,2571.9,2.1231]
[1747588092253,3.06942243,2572.5,2572.4,0.77722]
[1747588092459,3.84662243,2572.5,2572.0,10.87937]
[1747588092639,0.77723,2572.4,2572.3,0.77724]
[1747588092951,0.77728,2572.3,2572.1,4.99445175]
[1747588093148,0.77728,2572.2,2572.1,2.1275]
[1747588093553,0.77724,2572.4,2572.3,0.77725]
[1747588093955,5.3881,2572.7,2572.6,0.77716]
[1747588093956,3.2078,2572.7,2572.6,0.77716]
[1747588094754,2.2091,2572.9,2572.7,0.77711]
[1747588094954,2.98618,2572.9,2572.7,0.77711]
[1747588095255,2.98618,2572.9,2572.8,6.23720742]
[1747588096253,2.98618,2572.9,2572.8,4.10970742]
[1747588096753,0.77711,2572.8,2572.6,2.98076]
[1747588096942,3.2078,2572.8,2572.4,4.2401]
[1747588097148,3.2078,2572.5,2572.0,1.15965766]
[1747588097347,0.77731,2572.2,2572.1,2.2036]
[1747588097651,0.77731,2572.1,2572.0,1.15965766]
[1747588098264,8.83531,2572.1,2572.0,1.15965766]
[1747588098451,11.06271,2572.1,2572.0,1.15965766]
[1747588099160,10.2854,2572.1,2571.5,1.29465294]
[1747588099359,0.77747,2571.6,2571.5,1.29465294]
[1747588100349,3.00487,2571.6,2571.5,1.29465294]
[1747588100545,11.93787,2571.6,2571.5,1.29465294]
[1747588101150,11.93787,2571.6,2571.4,0.77752]
[1747588101151,11.93788,2571.6,2571.4,0.77752]
[1747588101453,11.93788,2571.6,2571.3,4.4211]
[1747588101454,8.933,2571.6,2571.5,2.9328]
[1747588101651,11.1985,2571.8,2571.7,0.77744]
[1747588101845,11.97591,2571.8,2571.7,0.77744]
[1747588102155,11.1985,2571.8,2571.7,0.77744]
[1747588102353,8.934,2571.8,2571.7,0.77744]
[1747588102653,3.98518,2571.9,2571.8,0.77741]
[1747588102854,3.2078,2571.9,2571.8,0.77741]
[1747588103050,3.98517,2571.9,2571.8,0.77741]
[1747588103254,3.98517,2571.9,2571.7,0.77742]
[1747588103454,3.98517,2571.9,2571.7,2.89402]
[1747588103656,3.2078,2571.9,2571.7,2.89402]
[1747588103854,3.98519,2571.9,2571.8,2.1166]
[1747588104256,6.24969,2571.9,2571.8,2.1166]
[1747588104757,0.7775,2571.5,2571.4,2.0865]
[1747588105259,0.7775,2571.5,2571.4,2.864]
[1747588105463,0.7775,2571.5,2571.4,2.0865]
[1747588105647,3.98529,2571.6,2571.4,2.0865]
[1747588105852,3.98529,2571.6,2571.5,0.7775]
[1747588106353,0.77749,2571.6,2571.5,0.7775]
[1747588106755,0.7775,2571.5,2571.4,2.0865]
[1747588107054,2.8336,2571.5,2571.3,3.04334]
[1747588107257,8.934,2571.6,2571.4,0.77753]
[1747588107457,0.77747,2571.6,2571.5,2.2492]
[1747588107857,0.77747,2571.6,2571.5,4.4301]
[1747588108064,0.77753,2571.4,2571.2,2.93616]
[1747588108260,0.77753,2571.4,2571.3,2.1809]
[1747588108458,2.2176,2571.5,2571.3,2.95843]
[1747588109261,0.77753,2571.4,2571.3,2.1809]
[1747588109668,0.77753,2571.4,2571.3,2.95846]
[1747588110166,0.77753,2571.4,2571.3,2.1809]
[1747588110464,2.2176,2571.5,2571.0,3.02683]
[1747588110655,0.77761,2571.2,2571.1,3.05271]
[1747588111167,0.77759,2571.2,2571.1,3.05271]
[1747588111467,2.82888,2571.3,2571.1,3.05269]
[1747588111658,2.82888,2571.3,2571.2,2.2751]
[1747588111859,2.82888,2571.3,2571.2,3.05269]
[1747588112061,2.82888,2571.3,2571.2,2.2751]
[1747588112561,6.03668,2571.3,2571.2,2.2751]
[1747588112757,1.94397,2571.2,2570.7,1.15965766]
[1747588112963,3.2078,2570.8,2570.4,1.15565959]
[1747588113160,0.77777,2570.6,2570.5,2.2751]
[1747588113557,11.76405,2570.7,2570.5,3.05288]
[1747588113759,9.71275,2570.7,2570.5,2.2751]
[1747588113960,0.7777,2570.9,2570.7,0.77772]
[1747588114170,9.7127,2570.9,2570.8,5.19141]
[1747588114562,9.71268,2570.9,2570.8,5.19141]
[1747588114764,8.935,2570.9,2570.8,5.19141]
[1747588116270,2.2354,2571.1,2571.0,0.77765]
[1747588116564,3.2078,2571.2,2571.1,0.77762]
[1747588116764,3.2078,2571.2,2571.1,2.88042]
[1747588116965,3.2078,2571.2,2571.1,7.23510361]
[1747588117367,0.77758,2571.3,2571.1,7.23510361]
[1747588117568,48.90855,2571.4,2571.2,2.88039]
[1747588117866,48.90855,2571.4,2571.3,4.1982]
[1747588119569,48.90853,2571.4,2571.3,4.1982]
[1747588121571,48.131,2571.4,2571.3,4.97576]
[1747588121771,3.2078,2571.6,2571.5,0.7775]
[1747588121772,12.1438,2571.6,2571.5,0.7775]
[1747588121976,3.98528,2571.6,2571.5,0.7775]
[1747588122272,3.2078,2571.6,2571.5,0.7775]
[1747588122579,3.2078,2571.6,2571.5,2.8923]
[1747588123166,3.2078,2571.6,2571.5,7.18452803]
[1747588123365,3.98527,2571.6,2571.5,2.8923]
[1747588123666,0.77747,2571.6,2571.5,2.1148]
[1747588124368,0.77747,2571.6,2571.5,2.8923]
[1747588125270,7.23097,2571.9,2571.5,2.1148]
[1747588125271,3.2078,2571.9,2571.5,2.1148]
[1747588125573,12.89309,2572.2,2572.1,0.77731]
[1747588126573,0.77732,2572.1,2572.0,0.77732]
[1747588126772,0.77732,2572.1,2572.0,2.99452]
[1747588127073,12.8931,2572.2,2572.1,0.77731]
[1747588127671,12.1158,2572.2,2572.1,0.77731]
[1747588128862,3.06942243,2572.9,2572.1,5.0]
[1747588129063,3.06942243,2572.9,2572.4,3.2078]